[Event "*** SCC Grand Prix: Titled Tuesday Blitz"]
[Site "Chess.com"]
[Date "2020.06.02"]
[Round "1"]
[White "tsaruk_maks"]
[Black "Nara_Kh"]
[Result "1-0"]
[WhiteElo "2646"]
[BlackElo "2313"]
[TimeControl "180+1"]
[EndTime "10:07:12 PDT"]
[Termination "tsaruk_maks won by resignation"]

1. e4 {[%clk 0:03:00.9]} 1... d6 {[%clk 0:02:59.2]} 2. d4 {[%clk 0:03:00.8]}
2... Nf6 {[%clk 0:02:59.3]} 3. Nc3 {[%clk 0:03:01.3]} 3... g6 {[%clk 0:02:58.5]}
4. Be3 {[%clk 0:02:58]} 4... c6 {[%clk 0:02:56.2]} 5. Qd2 {[%clk 0:02:55.8]}
5... b5 {[%clk 0:02:55.3]} 6. a3 {[%clk 0:02:54.6]} 6... Nbd7 {[%clk 0:02:53.1]}
7. f3 {[%clk 0:02:53.1]} 7... e5 {[%clk 0:02:48.8]} 8. O-O-O {[%clk 0:02:50.9]}
8... Bg7 {[%clk 0:02:41.1]} 9. d5 {[%clk 0:02:40.7]} 9... cxd5 {[%clk
0:02:21.4]} 10. Nxb5 {[%clk 0:02:38.2]} 10... d4 {[%clk 0:02:15.5]} 11. Nxd6+
{[%clk 0:02:33.2]} 11... Ke7 {[%clk 0:02:15]} 12. Qb4 {[%clk 0:02:28.2]} 12...
Nc5 {[%clk 0:01:57]} 13. Qxc5 {[%clk 0:01:45.7]} 13... Qxd6 {[%clk 0:01:56.1]}
14. Qxd6+ {[%clk 0:01:46.6]} 14... Kxd6 {[%clk 0:01:55.7]} 15. f4 {[%clk
0:01:47.5]} 15... Ke7 {[%clk 0:01:15]} 16. fxe5 {[%clk 0:01:48.4]} 16... dxe3
{[%clk 0:01:13.4]} 17. exf6+ {[%clk 0:01:49.3]} 17... Bxf6 {[%clk 0:01:12.9]}
18. Nf3 {[%clk 0:01:49.5]} 18... Bb7 {[%clk 0:01:06.8]} 19. Bd3 {[%clk
0:01:45.1]} 19... e2 {[%clk 0:00:59.1]} 20. Rde1 {[%clk 0:01:41.3]} 20... Rac8
{[%clk 0:00:43.8]} 21. Rxe2 {[%clk 0:01:41.2]} 21... Rhd8 {[%clk 0:00:43.7]} 22.
Rd1 {[%clk 0:01:41.2]} 22... h5 {[%clk 0:00:40.4]} 23. c3 {[%clk 0:01:33.6]}
23... Bg7 {[%clk 0:00:36.7]} 24. Kc2 {[%clk 0:01:32.7]} 24... Bc6 {[%clk
0:00:31.4]} 25. Rdd2 {[%clk 0:01:29]} 25... Ba4+ {[%clk 0:00:31]} 26. Kb1 {[%clk
0:01:28.4]} 26... Rb8 {[%clk 0:00:29.6]} 27. Bc2 {[%clk 0:01:09.8]} 27... Bxc3
{[%clk 0:00:19.2]} 28. Bxa4 {[%clk 0:01:08.7]} 28... Bxd2 {[%clk 0:00:18.5]} 29.
Rxd2 {[%clk 0:01:09.6]} 29... Rxd2 {[%clk 0:00:18.1]} 30. Nxd2 {[%clk
0:01:10.5]} 30... Kd6 {[%clk 0:00:18.4]} 31. Bb3 {[%clk 0:01:08.5]} 31... Rb7
{[%clk 0:00:17.2]} 32. Bd5 {[%clk 0:01:08.4]} 32... Rc7 {[%clk 0:00:17.5]} 33.
Nc4+ {[%clk 0:01:07.7]} 33... Kc5 {[%clk 0:00:17.9]} 34. Ne5 {[%clk 0:01:07.7]}
34... Kd4 {[%clk 0:00:17.5]} 35. Nxf7 {[%clk 0:01:07]} 35... Re7 {[%clk
0:00:12.1]} 36. Ka2 {[%clk 0:01:06.1]} 36... a5 {[%clk 0:00:11.6]} 37. Kb3
{[%clk 0:01:00.5]} 37... h4 {[%clk 0:00:11.9]} 38. Ka4 {[%clk 0:01:00.6]} 38...
Ke3 {[%clk 0:00:12.2]} 39. e5 {[%clk 0:00:58.6]} 39... Kf2 {[%clk 0:00:11.8]}
40. e6 {[%clk 0:00:58.4]} 40... Kg1 {[%clk 0:00:11.4]} 41. h3 {[%clk 0:00:58.4]}
41... Kf2 {[%clk 0:00:11.4]} 42. Ne5 {[%clk 0:00:58.3]} 42... g5 {[%clk
0:00:09.8]} 43. Nc6 {[%clk 0:00:57.7]} 43... Rc7 {[%clk 0:00:07.9]} 44. e7
{[%clk 0:00:58.6]} 44... Rc8 {[%clk 0:00:08.3]} 45. Bf7 {[%clk 0:00:58.9]} 45...
Kxg2 {[%clk 0:00:07.2]} 46. e8=Q {[%clk 0:00:59.2]} 46... Rxe8 {[%clk
0:00:07.8]} 47. Bxe8 {[%clk 0:01:00.1]} 47... Kxh3 {[%clk 0:00:08.3]} 48. Kxa5
{[%clk 0:01:00.9]} 48... g4 {[%clk 0:00:08.3]} 49. Bd7 {[%clk 0:01:01.5]} 49...
Kg3 {[%clk 0:00:07.9]} 50. Ne5 {[%clk 0:01:02.2]} 50... h3 {[%clk 0:00:08.2]}
51. Nxg4 {[%clk 0:01:03.1]} 1-0

[Event "*** SCC Grand Prix: Titled Tuesday Blitz"]
[Site "Chess.com"]
[Date "2020.06.02"]
[Round "1"]
[White "Meri-Arabidze"]
[Black "Vandros57"]
[Result "1/2-1/2"]
[WhiteElo "2570"]
[BlackElo "2258"]
[TimeControl "180+1"]
[EndTime "10:07:13 PDT"]
[Termination "Game drawn by agreement"]

1. d4 {[%clk 0:03:00.9]} 1... Nf6 {[%clk 0:02:58.1]} 2. c4 {[%clk 0:03:01.4]}
2... e6 {[%clk 0:02:56.9]} 3. Nf3 {[%clk 0:03:01.7]} 3... Bb4+ {[%clk
0:02:55.2]} 4. Bd2 {[%clk 0:03:01.4]} 4... Bxd2+ {[%clk 0:02:53.8]} 5. Qxd2
{[%clk 0:03:01.3]} 5... O-O {[%clk 0:02:49.5]} 6. Nc3 {[%clk 0:03:01.3]} 6... d5
{[%clk 0:02:47.1]} 7. g3 {[%clk 0:03:01.4]} 7... Nbd7 {[%clk 0:02:36.4]} 8. Bg2
{[%clk 0:03:01.6]} 8... b6 {[%clk 0:02:34.7]} 9. O-O {[%clk 0:03:01.5]} 9... Bb7
{[%clk 0:02:33.7]} 10. cxd5 {[%clk 0:03:01.3]} 10... Nxd5 {[%clk 0:02:27.5]} 11.
Rac1 {[%clk 0:02:59.7]} 11... Rc8 {[%clk 0:02:24.1]} 12. Rfd1 {[%clk 0:02:57.9]}
12... Qe7 {[%clk 0:02:21.7]} 13. Nxd5 {[%clk 0:02:52]} 13... Bxd5 {[%clk
0:02:20.1]} 14. b3 {[%clk 0:02:52.1]} 14... c5 {[%clk 0:02:14.4]} 15. dxc5
{[%clk 0:02:35.7]} 15... Nxc5 {[%clk 0:02:13.3]} 16. Qf4 {[%clk 0:02:32.4]}
16... g6 {[%clk 0:02:07.4]} 17. Ne5 {[%clk 0:02:30.6]} 17... Bxg2 {[%clk
0:02:05.6]} 18. Kxg2 {[%clk 0:02:31.5]} 18... Qb7+ {[%clk 0:02:04]} 19. Qf3
{[%clk 0:02:31.7]} 19... Qxf3+ {[%clk 0:02:02.6]} 20. exf3 {[%clk 0:02:26.7]}
20... Kg7 {[%clk 0:01:46.2]} 21. f4 {[%clk 0:02:26.5]} 21... h5 {[%clk
0:01:43.6]} 22. h4 {[%clk 0:02:25.5]} 22... Rfd8 {[%clk 0:01:40]} 23. b4 {[%clk
0:02:22.2]} 23... Ne4 {[%clk 0:01:34.5]} 24. Rxc8 {[%clk 0:02:07.4]} 24... Rxc8
{[%clk 0:01:24.3]} 25. Rd7 {[%clk 0:02:04]} 25... Rc2 {[%clk 0:01:22.2]} 26.
Rxf7+ {[%clk 0:01:59.9]} 26... Kg8 {[%clk 0:01:21.5]} 27. Rxa7 {[%clk
0:01:55.4]} 27... Rxf2+ {[%clk 0:01:20.4]} 28. Kg1 {[%clk 0:01:55.4]} 28... Rd2
{[%clk 0:01:13.4]} 29. Ra3 {[%clk 0:01:37.5]} 29... Nf2 {[%clk 0:01:08.7]} 30.
Nxg6 {[%clk 0:01:30.9]} 30... Kf7 {[%clk 0:00:57.6]} 31. Ne5+ {[%clk 0:01:30.4]}
31... Kf6 {[%clk 0:00:56.6]} 32. b5 {[%clk 0:01:27.6]} 32... Kf5 {[%clk
0:00:55.9]} 33. Rf3 {[%clk 0:01:12.9]} 33... Ne4 {[%clk 0:00:53.9]} 34. a4
{[%clk 0:01:09]} 34... Ra2 {[%clk 0:00:50.7]} 35. Re3 {[%clk 0:01:07.5]} 35...
Rxa4 {[%clk 0:00:47.7]} 36. Nd7 {[%clk 0:01:07.6]} 36... Rb4 {[%clk 0:00:44.5]}
37. Nxb6 {[%clk 0:01:04.7]} 37... Rxb5 {[%clk 0:00:44.4]} 38. Nc4 {[%clk
0:00:59.9]} 38... Rb1+ {[%clk 0:00:42.8]} 39. Kg2 {[%clk 0:00:59.6]} 39... Rc1
{[%clk 0:00:41.2]} 40. Ne5 {[%clk 0:00:44.1]} 40... Rc2+ {[%clk 0:00:40]} 41.
Kf1 {[%clk 0:00:43.6]} 41... Rc1+ {[%clk 0:00:39.8]} 42. Ke2 {[%clk 0:00:42.4]}
42... Rc2+ {[%clk 0:00:39.5]} 43. Kd1 {[%clk 0:00:34]} 43... Rd2+ {[%clk
0:00:39]} 44. Ke1 {[%clk 0:00:33]} 44... Rg2 {[%clk 0:00:36.9]} 45. Nc6 {[%clk
0:00:17.8]} 45... Rxg3 {[%clk 0:00:34.2]} 1/2-1/2

[Event "*** SCC Grand Prix: Titled Tuesday Blitz"]
[Site "Chess.com"]
[Date "2020.06.02"]
[Round "1"]
[White "MuradNuri"]
[Black "FairChess_on_YouTube"]
[Result "0-1"]
[WhiteElo "2450"]
[BlackElo "3012"]
[TimeControl "180+1"]
[EndTime "10:07:14 PDT"]
[Termination "FairChess_on_YouTube won on time"]

1. d4 {[%clk 0:03:00.4]} 1... Nf6 {[%clk 0:02:59.5]} 2. c4 {[%clk 0:02:59.9]}
2... e6 {[%clk 0:02:59.7]} 3. Nf3 {[%clk 0:02:59.6]} 3... d5 {[%clk 0:02:59.6]}
4. g3 {[%clk 0:02:58.8]} 4... dxc4 {[%clk 0:02:56]} 5. Bg2 {[%clk 0:02:58.7]}
5... c6 {[%clk 0:02:56.2]} 6. O-O {[%clk 0:02:56.9]} 6... b5 {[%clk 0:02:55.7]}
7. a4 {[%clk 0:02:53.7]} 7... Bb7 {[%clk 0:02:50.8]} 8. Ne5 {[%clk 0:02:49.7]}
8... a6 {[%clk 0:02:49.3]} 9. b3 {[%clk 0:02:45.3]} 9... cxb3 {[%clk 0:02:45.7]}
10. Bb2 {[%clk 0:02:45.5]} 10... Nfd7 {[%clk 0:02:33.8]} 11. Qxb3 {[%clk
0:02:28.3]} 11... Nxe5 {[%clk 0:02:32.8]} 12. dxe5 {[%clk 0:02:29.2]} 12... Be7
{[%clk 0:02:31.2]} 13. Nc3 {[%clk 0:02:25]} 13... Nd7 {[%clk 0:02:21.3]} 14.
Rfd1 {[%clk 0:01:54.8]} 14... O-O {[%clk 0:02:17.9]} 15. Ne4 {[%clk 0:01:55]}
15... Qc7 {[%clk 0:02:05.7]} 16. Nd6 {[%clk 0:01:40.6]} 16... Nc5 {[%clk
0:02:02.5]} 17. Qc2 {[%clk 0:01:13.6]} 17... Nxa4 {[%clk 0:01:58.9]} 18. Rxa4
{[%clk 0:01:05.2]} 18... bxa4 {[%clk 0:01:58.1]} 19. Be4 {[%clk 0:01:05.6]}
19... h6 {[%clk 0:01:47.5]} 20. Ba3 {[%clk 0:00:53.4]} 20... Rab8 {[%clk
0:01:44.3]} 21. Qxa4 {[%clk 0:00:41.3]} 21... Ba8 {[%clk 0:01:43.3]} 22. Bc5
{[%clk 0:00:38.4]} 22... Rb5 {[%clk 0:01:42.4]} 23. Qa3 {[%clk 0:00:33.3]} 23...
Rd8 {[%clk 0:01:29.6]} 24. Rc1 {[%clk 0:00:30]} 24... Rxc5 {[%clk 0:00:57.1]}
25. Qxc5 {[%clk 0:00:27.3]} 25... Bxd6 {[%clk 0:00:56.4]} 26. exd6 {[%clk
0:00:25.4]} 26... Qxd6 {[%clk 0:00:56.9]} 27. Qa7 {[%clk 0:00:18]} 27... Qd4
{[%clk 0:00:48.4]} 28. Qc7 {[%clk 0:00:18]} 28... a5 {[%clk 0:00:38.3]} 29. Bd3
{[%clk 0:00:17.7]} 29... a4 {[%clk 0:00:34]} 30. Rc4 {[%clk 0:00:16.9]} 30...
Qa1+ {[%clk 0:00:30.7]} 31. Kg2 {[%clk 0:00:17.1]} 31... c5+ {[%clk 0:00:30.8]}
32. f3 {[%clk 0:00:14.9]} 32... Rxd3 {[%clk 0:00:27.4]} 33. Qc8+ {[%clk
0:00:08.7]} 33... Kh7 {[%clk 0:00:26.9]} 34. exd3 {[%clk 0:00:09.2]} 34... Qa2+
{[%clk 0:00:24.7]} 35. Kh3 {[%clk 0:00:03.6]} 35... Bxf3 {[%clk 0:00:25.1]} 0-1

[Event "*** SCC Grand Prix: Titled Tuesday Blitz"]
[Site "Chess.com"]
[Date "2020.06.02"]
[Round "1"]
[White "FightingChess"]
[Black "Kirill_Klukin"]
[Result "0-1"]
[WhiteElo "2357"]
[BlackElo "2715"]
[TimeControl "180+1"]
[EndTime "10:07:14 PDT"]
[Termination "Kirill_Klukin won by resignation"]

1. e4 {[%clk 0:03:00.6]} 1... c5 {[%clk 0:02:57]} 2. c3 {[%clk 0:03:00.8]} 2...
Nf6 {[%clk 0:02:56.7]} 3. e5 {[%clk 0:03:01.3]} 3... Nd5 {[%clk 0:02:56.8]} 4.
Nf3 {[%clk 0:03:02.1]} 4... Nc6 {[%clk 0:02:56.5]} 5. Bc4 {[%clk 0:03:02.8]}
5... e6 {[%clk 0:02:56.4]} 6. d4 {[%clk 0:03:02.6]} 6... cxd4 {[%clk 0:02:56.5]}
7. cxd4 {[%clk 0:03:03.5]} 7... d6 {[%clk 0:02:54.1]} 8. O-O {[%clk 0:03:03.8]}
8... Be7 {[%clk 0:02:53.7]} 9. Qe2 {[%clk 0:03:04.2]} 9... O-O {[%clk
0:02:53.3]} 10. Nc3 {[%clk 0:03:02.5]} 10... Nxc3 {[%clk 0:02:52.1]} 11. bxc3
{[%clk 0:03:03.4]} 11... dxe5 {[%clk 0:02:52.5]} 12. dxe5 {[%clk 0:03:04.3]}
12... Qc7 {[%clk 0:02:52.5]} 13. Qe4 {[%clk 0:03:03.9]} 13... Rd8 {[%clk
0:02:44.7]} 14. Bd3 {[%clk 0:02:27.5]} 14... g6 {[%clk 0:02:33.8]} 15. h4 {[%clk
0:02:19.3]} 15... Bd7 {[%clk 0:02:14.9]} 16. Re1 {[%clk 0:01:37.3]} 16... Be8
{[%clk 0:02:10.8]} 17. Bg5 {[%clk 0:01:27.3]} 17... Bxg5 {[%clk 0:01:54]} 18.
hxg5 {[%clk 0:01:28.2]} 18... Rd5 {[%clk 0:01:42.4]} 19. Bc2 {[%clk 0:01:01.4]}
19... Rad8 {[%clk 0:01:35]} 20. Qf4 {[%clk 0:00:53]} 20... Qa5 {[%clk
0:01:10.3]} 21. Bb3 {[%clk 0:00:46.7]} 21... Rc5 {[%clk 0:00:57.4]} 22. c4
{[%clk 0:00:40.4]} 22... Qc3 {[%clk 0:00:37.5]} 23. Rac1 {[%clk 0:00:37.2]}
23... Qb2 {[%clk 0:00:37.3]} 24. Rb1 {[%clk 0:00:33.4]} 24... Qc3 {[%clk
0:00:36]} 25. Rec1 {[%clk 0:00:31.3]} 25... Qa5 {[%clk 0:00:35.5]} 26. Re1
{[%clk 0:00:30.8]} 26... Nb4 {[%clk 0:00:29.3]} 27. Nh2 {[%clk 0:00:25.7]} 27...
Nd3 {[%clk 0:00:29.2]} 28. Qf6 {[%clk 0:00:15.8]} 28... Rxe5 {[%clk 0:00:12.9]}
29. Rxe5 {[%clk 0:00:09.4]} 29... Nxe5 {[%clk 0:00:13.8]} 30. f4 {[%clk
0:00:06]} 30... Nd7 {[%clk 0:00:14]} 31. Qb2 {[%clk 0:00:04]} 31... Qc5+ {[%clk
0:00:14.2]} 32. Kh1 {[%clk 0:00:04.3]} 32... Qf5 {[%clk 0:00:13.5]} 33. Qf2
{[%clk 0:00:03.5]} 33... Qxb1+ {[%clk 0:00:12.2]} 34. Nf1 {[%clk 0:00:03.9]}
34... e5 {[%clk 0:00:11]} 35. f5 {[%clk 0:00:03.1]} 35... Qxf5 {[%clk
0:00:11.1]} 0-1

[Event "*** SCC Grand Prix: Titled Tuesday Blitz"]
[Site "Chess.com"]
[Date "2020.06.02"]
[Round "1"]
[White "sorrm8thatscheckm8"]
[Black "A-Fier"]
[Result "0-1"]
[WhiteElo "2379"]
[BlackElo "2735"]
[TimeControl "180+1"]
[EndTime "10:07:15 PDT"]
[Termination "A-Fier won on time"]

1. d4 {[%clk 0:03:00.9]} 1... Nf6 {[%clk 0:02:59.8]} 2. c4 {[%clk 0:02:57.7]}
2... e6 {[%clk 0:03:00.2]} 3. Nf3 {[%clk 0:02:57.2]} 3... b6 {[%clk 0:03:00]} 4.
a3 {[%clk 0:02:56.3]} 4... Ba6 {[%clk 0:02:59.6]} 5. Qc2 {[%clk 0:02:54.8]} 5...
c5 {[%clk 0:02:59.3]} 6. d5 {[%clk 0:02:50.7]} 6... exd5 {[%clk 0:02:58]} 7.
cxd5 {[%clk 0:02:50.8]} 7... g6 {[%clk 0:02:58.5]} 8. Nc3 {[%clk 0:02:50.3]}
8... Bg7 {[%clk 0:02:58.3]} 9. g3 {[%clk 0:02:50.3]} 9... O-O {[%clk 0:02:57.9]}
10. Bg2 {[%clk 0:02:50.3]} 10... d6 {[%clk 0:02:58.3]} 11. O-O {[%clk 0:02:50]}
11... Re8 {[%clk 0:02:57.8]} 12. Re1 {[%clk 0:02:50]} 12... Nbd7 {[%clk
0:02:57.3]} 13. Bf4 {[%clk 0:02:49.3]} 13... Qc7 {[%clk 0:02:54.8]} 14. Rac1
{[%clk 0:02:46.9]} 14... b5 {[%clk 0:02:48.9]} 15. b4 {[%clk 0:02:40.1]} 15...
Nh5 {[%clk 0:02:32.8]} 16. Be3 {[%clk 0:02:33]} 16... Rxe3 {[%clk 0:02:29]} 17.
fxe3 {[%clk 0:02:30.7]} 17... Re8 {[%clk 0:02:28.4]} 18. e4 {[%clk 0:02:25.8]}
18... Nhf6 {[%clk 0:02:28.4]} 19. Qb1 {[%clk 0:02:13.5]} 19... Ng4 {[%clk
0:02:17.3]} 20. Nd1 {[%clk 0:02:05.8]} 20... Nge5 {[%clk 0:02:13.3]} 21. Nf2
{[%clk 0:01:59.3]} 21... c4 {[%clk 0:02:12.2]} 22. Nd4 {[%clk 0:01:46.8]} 22...
Qb6 {[%clk 0:02:07.4]} 23. e3 {[%clk 0:01:46.8]} 23... Bb7 {[%clk 0:02:06.8]}
24. h3 {[%clk 0:01:44.2]} 24... a6 {[%clk 0:02:07]} 25. Qc2 {[%clk 0:01:38.7]}
25... a5 {[%clk 0:01:55.7]} 26. Rcd1 {[%clk 0:01:31]} 26... Ra8 {[%clk
0:01:52.7]} 27. h4 {[%clk 0:01:18.1]} 27... h5 {[%clk 0:01:49.9]} 28. Nh3 {[%clk
0:01:07.8]} 28... Nd3 {[%clk 0:01:45.1]} 29. Rxd3 {[%clk 0:01:03.8]} 29... cxd3
{[%clk 0:01:46]} 30. Qxd3 {[%clk 0:01:04.2]} 30... axb4 {[%clk 0:01:46.6]} 31.
axb4 {[%clk 0:01:05]} 31... Ne5 {[%clk 0:01:46.9]} 32. Qxb5 {[%clk 0:01:01.1]}
32... Qc7 {[%clk 0:01:46.8]} 33. Nf4 {[%clk 0:00:52]} 33... Ra2 {[%clk
0:01:45.6]} 34. Qf1 {[%clk 0:00:35.3]} 34... Qc3 {[%clk 0:01:38.6]} 35. Nb5
{[%clk 0:00:13.1]} 35... Qxb4 {[%clk 0:01:33.6]} 36. Rb1 {[%clk 0:00:07.2]}
36... Qc5 {[%clk 0:01:25.1]} 37. Nd4 {[%clk 0:00:06.5]} 37... Ba6 {[%clk
0:01:25.2]} 38. Qc1 {[%clk 0:00:04.9]} 38... Ng4 {[%clk 0:01:21]} 39. Qxc5
{[%clk 0:00:04.5]} 39... dxc5 {[%clk 0:01:21.9]} 40. Nc6 {[%clk 0:00:05.1]}
40... Nxe3 {[%clk 0:01:21.2]} 41. Rb8+ {[%clk 0:00:05.6]} 41... Kh7 {[%clk
0:01:21.3]} 42. Nd8 {[%clk 0:00:04.9]} 42... Bd4 {[%clk 0:01:18.8]} 43. Kh1
{[%clk 0:00:04.3]} 43... Ra1+ {[%clk 0:01:11.3]} 44. Kh2 {[%clk 0:00:03.7]}
44... Ng4+ {[%clk 0:01:12.2]} 45. Kh3 {[%clk 0:00:03.5]} 45... Bg1 {[%clk
0:01:06.3]} 0-1

[Event "*** SCC Grand Prix: Titled Tuesday Blitz"]
[Site "Chess.com"]
[Date "2020.06.02"]
[Round "1"]
[White "gm_rashid"]
[Black "Dedic8"]
[Result "0-1"]
[WhiteElo "2366"]
[BlackElo "2723"]
[TimeControl "180+1"]
[EndTime "10:07:15 PDT"]
[Termination "Dedic8 won on time"]

1. e4 {[%clk 0:02:55.6]} 1... e5 {[%clk 0:02:59.7]} 2. Nf3 {[%clk 0:02:54.4]}
2... Nc6 {[%clk 0:03:00.4]} 3. Bc4 {[%clk 0:02:53.3]} 3... Nf6 {[%clk
0:03:00.6]} 4. d3 {[%clk 0:02:52.8]} 4... Bc5 {[%clk 0:03:00.8]} 5. Nc3 {[%clk
0:02:52.6]} 5... h6 {[%clk 0:02:57.9]} 6. Be3 {[%clk 0:02:50.2]} 6... Bxe3
{[%clk 0:02:55.9]} 7. fxe3 {[%clk 0:02:49.4]} 7... d6 {[%clk 0:02:56.5]} 8. O-O
{[%clk 0:02:48.7]} 8... Be6 {[%clk 0:02:56.7]} 9. Nd5 {[%clk 0:02:39]} 9... Bxd5
{[%clk 0:02:54.1]} 10. exd5 {[%clk 0:02:35.6]} 10... Ne7 {[%clk 0:02:54.5]} 11.
e4 {[%clk 0:02:24.8]} 11... c6 {[%clk 0:02:27.1]} 12. dxc6 {[%clk 0:02:21.3]}
12... bxc6 {[%clk 0:02:28]} 13. Kh1 {[%clk 0:02:20.2]} 13... Ng6 {[%clk
0:02:28]} 14. c3 {[%clk 0:02:11.2]} 14... O-O {[%clk 0:02:27.6]} 15. Bb3 {[%clk
0:02:05.2]} 15... d5 {[%clk 0:02:10.4]} 16. Qe1 {[%clk 0:01:55.9]} 16... Qc7
{[%clk 0:02:03.8]} 17. Rd1 {[%clk 0:01:53.9]} 17... a5 {[%clk 0:02:03.4]} 18.
Nh4 {[%clk 0:01:36.9]} 18... a4 {[%clk 0:01:53.8]} 19. Nxg6 {[%clk 0:01:30.2]}
19... fxg6 {[%clk 0:01:54.7]} 20. Bc2 {[%clk 0:01:28.8]} 20... Kh7 {[%clk
0:01:18.9]} 21. d4 {[%clk 0:01:12.9]} 21... dxe4 {[%clk 0:01:11.9]} 22. Bxe4
{[%clk 0:01:09.7]} 22... a3 {[%clk 0:01:12.5]} 23. bxa3 {[%clk 0:01:00.1]} 23...
exd4 {[%clk 0:01:12.4]} 24. Rxd4 {[%clk 0:00:53.6]} 24... Nxe4 {[%clk 0:01:08]}
25. Rxf8 {[%clk 0:00:43.1]} 25... Rxf8 {[%clk 0:01:07]} 26. Rxe4 {[%clk
0:00:42.1]} 26... Qa5 {[%clk 0:01:07.3]} 27. h3 {[%clk 0:00:35.3]} 27... Qxa3
{[%clk 0:01:07.3]} 28. Re6 {[%clk 0:00:28.1]} 28... Qc5 {[%clk 0:00:45.5]} 29.
Qe4 {[%clk 0:00:20.3]} 29... Rf1+ {[%clk 0:00:32.7]} 30. Kh2 {[%clk 0:00:20.2]}
30... Qg1+ {[%clk 0:00:33.3]} 31. Kg3 {[%clk 0:00:18.7]} 31... Rf5 {[%clk
0:00:34.2]} 32. h4 {[%clk 0:00:12.5]} 32... c5 {[%clk 0:00:24.6]} 33. Qg4 {[%clk
0:00:04.8]} 33... Qf2+ {[%clk 0:00:19.4]} 34. Kh2 {[%clk 0:00:03.6]} 34... g5
{[%clk 0:00:20.3]} 35. h5 {[%clk 0:00:02.3]} 35... Rf4 {[%clk 0:00:20.1]} 0-1

[Event "*** SCC Grand Prix: Titled Tuesday Blitz"]
[Site "Chess.com"]
[Date "2020.06.02"]
[Round "1"]
[White "Fighter008"]
[Black "secretsuperstar7"]
[Result "1-0"]
[WhiteElo "2562"]
[BlackElo "2218"]
[TimeControl "180+1"]
[EndTime "10:07:16 PDT"]
[Termination "Fighter008 won by resignation"]

1. e4 {[%clk 0:02:59.2]} 1... c5 {[%clk 0:02:59.3]} 2. Nf3 {[%clk 0:02:59.4]}
2... d6 {[%clk 0:02:59.1]} 3. d4 {[%clk 0:02:59.1]} 3... cxd4 {[%clk 0:02:59.2]}
4. Nxd4 {[%clk 0:02:59.6]} 4... Nf6 {[%clk 0:02:59.7]} 5. Nc3 {[%clk 0:02:59.7]}
5... Nc6 {[%clk 0:02:59.1]} 6. f3 {[%clk 0:02:59]} 6... e5 {[%clk 0:02:57.9]} 7.
Nb3 {[%clk 0:02:58.5]} 7... Be6 {[%clk 0:02:56.8]} 8. Be3 {[%clk 0:02:58.1]}
8... d5 {[%clk 0:02:56.4]} 9. exd5 {[%clk 0:02:56.8]} 9... Nxd5 {[%clk
0:02:55.5]} 10. Nxd5 {[%clk 0:02:56.8]} 10... Bxd5 {[%clk 0:02:54.7]} 11. Be2
{[%clk 0:02:26.2]} 11... Be7 {[%clk 0:02:40.4]} 12. O-O {[%clk 0:02:25.4]} 12...
O-O {[%clk 0:02:40]} 13. Qe1 {[%clk 0:02:19.8]} 13... Nb4 {[%clk 0:02:35.1]} 14.
Qb1 {[%clk 0:02:04.7]} 14... Rc8 {[%clk 0:02:17.6]} 15. c3 {[%clk 0:02:03]}
15... Nc6 {[%clk 0:02:05.7]} 16. Rd1 {[%clk 0:02:02.4]} 16... Na5 {[%clk
0:01:44.8]} 17. Nxa5 {[%clk 0:01:35]} 17... Qxa5 {[%clk 0:01:42.9]} 18. b4
{[%clk 0:01:35]} 18... Qd8 {[%clk 0:01:34.9]} 19. c4 {[%clk 0:01:33.5]} 19...
Bg5 {[%clk 0:01:25.7]} 20. Bf2 {[%clk 0:01:22]} 20... Bxc4 {[%clk 0:00:48.1]}
21. Bxc4 {[%clk 0:01:05.9]} 21... Rxc4 {[%clk 0:00:46]} 22. Rxd8 {[%clk
0:01:03.5]} 22... Rxd8 {[%clk 0:00:43.8]} 23. Qb3 {[%clk 0:01:00.3]} 23... b5
{[%clk 0:00:40.2]} 24. Be3 {[%clk 0:00:44.7]} 24... Bf6 {[%clk 0:00:30.7]} 25.
Rd1 {[%clk 0:00:39.9]} 25... Rdc8 {[%clk 0:00:27.4]} 26. Bc5 {[%clk 0:00:34.5]}
26... a5 {[%clk 0:00:19.7]} 27. a3 {[%clk 0:00:32.7]} 27... h6 {[%clk 0:00:19]}
28. Qd3 {[%clk 0:00:24.4]} 28... axb4 {[%clk 0:00:05.3]} 29. axb4 {[%clk
0:00:25.3]} 29... Ra8 {[%clk 0:00:05.2]} 30. Qb3 {[%clk 0:00:20.5]} 30... Ra4
{[%clk 0:00:03.7]} 31. h3 {[%clk 0:00:20.2]} 31... Kh7 {[%clk 0:00:02.7]} 32.
Qd3+ {[%clk 0:00:20.1]} 32... g6 {[%clk 0:00:02.7]} 33. Qd7 {[%clk 0:00:19.1]}
33... Kg7 {[%clk 0:00:03.4]} 34. Qxb5 {[%clk 0:00:18.7]} 1-0

[Event "*** SCC Grand Prix: Titled Tuesday Blitz"]
[Site "Chess.com"]
[Date "2020.06.02"]
[Round "1"]
[White "DariaVoit"]
[Black "GoValya"]
[Result "1-0"]
[WhiteElo "2531"]
[BlackElo "2168"]
[TimeControl "180+1"]
[EndTime "10:07:16 PDT"]
[Termination "DariaVoit won by resignation"]

1. d4 {[%clk 0:03:00.9]} 1... g6 {[%clk 0:02:58]} 2. e4 {[%clk 0:03:00.1]} 2...
Bg7 {[%clk 0:02:58]} 3. Nc3 {[%clk 0:03:00.6]} 3... c5 {[%clk 0:02:57.9]} 4.
dxc5 {[%clk 0:02:56.3]} 4... Qa5 {[%clk 0:02:55.4]} 5. Ne2 {[%clk 0:02:26.8]}
5... Nf6 {[%clk 0:02:20.4]} 6. Ng3 {[%clk 0:01:57.7]} 6... h5 {[%clk 0:02:04.8]}
7. Bd3 {[%clk 0:01:37]} 7... h4 {[%clk 0:01:59.3]} 8. Ne2 {[%clk 0:01:36.6]}
8... Qxc5 {[%clk 0:01:57.7]} 9. Be3 {[%clk 0:01:36.4]} 9... Qc7 {[%clk
0:01:54.9]} 10. h3 {[%clk 0:01:35.9]} 10... a6 {[%clk 0:01:51.3]} 11. Nd4 {[%clk
0:01:33.5]} 11... Nc6 {[%clk 0:01:46.6]} 12. Nf3 {[%clk 0:01:27.5]} 12... b5
{[%clk 0:01:31.6]} 13. O-O {[%clk 0:01:22.4]} 13... Bb7 {[%clk 0:01:16.8]} 14.
Bg5 {[%clk 0:01:16.3]} 14... b4 {[%clk 0:01:02.3]} 15. Na4 {[%clk 0:01:09.7]}
15... Qa5 {[%clk 0:01:01.7]} 16. c3 {[%clk 0:00:56.4]} 16... bxc3 {[%clk
0:00:58.4]} 17. Nxc3 {[%clk 0:00:55.7]} 17... Ne5 {[%clk 0:00:58.3]} 18. Nxe5
{[%clk 0:00:50.4]} 18... Qxe5 {[%clk 0:00:57.4]} 19. Qd2 {[%clk 0:00:37]} 19...
Rc8 {[%clk 0:00:23]} 20. Rfe1 {[%clk 0:00:36.9]} 20... Rh5 {[%clk 0:00:19.8]}
21. Bf4 {[%clk 0:00:36.1]} 21... Qd4 {[%clk 0:00:18.9]} 22. Rad1 {[%clk
0:00:36]} 22... Kf8 {[%clk 0:00:18.1]} 23. Be3 {[%clk 0:00:35.1]} 23... Qe5
{[%clk 0:00:17.6]} 24. Bf4 {[%clk 0:00:32]} 24... Qd4 {[%clk 0:00:17.2]} 25. Qe2
{[%clk 0:00:32.5]} 25... Qb4 {[%clk 0:00:16.2]} 26. a3 {[%clk 0:00:31.7]} 26...
Qb6 {[%clk 0:00:15.4]} 27. Na4 {[%clk 0:00:28.6]} 27... Qe6 {[%clk 0:00:14.8]}
28. b4 {[%clk 0:00:27.2]} 28... Kg8 {[%clk 0:00:14.1]} 29. Nc5 {[%clk
0:00:26.7]} 29... Qb6 {[%clk 0:00:12.3]} 30. Nxb7 {[%clk 0:00:26.8]} 30... Qxb7
{[%clk 0:00:11.7]} 31. Bxa6 {[%clk 0:00:27.4]} 31... Qc6 {[%clk 0:00:11.6]} 32.
Rc1 {[%clk 0:00:25.4]} 32... Qxe4 {[%clk 0:00:05.8]} 33. Rxc8+ {[%clk
0:00:23.8]} 33... Kh7 {[%clk 0:00:05.6]} 34. Qxe4 {[%clk 0:00:24.7]} 34... Nxe4
{[%clk 0:00:05.7]} 35. Rxe4 {[%clk 0:00:25.5]} 35... Rf5 {[%clk 0:00:05.8]} 36.
Be3 {[%clk 0:00:24.9]} 36... Rf6 {[%clk 0:00:05.3]} 37. Rxh4+ {[%clk 0:00:24.7]}
37... Bh6 {[%clk 0:00:04.5]} 38. Rxh6+ {[%clk 0:00:25.6]} 38... Kg7 {[%clk
0:00:05]} 39. Bd4 {[%clk 0:00:23.8]} 1-0